bitfinex/quotes_ETHUSD_20260130
["timestamp","ask_amount","ask_price","bid_price","bid_amount"]
[1769761550943,9.48999051,2749.1,2747.5,8.42287314]
[1769761551741,10.39938316,2749.1,2747.5,9.51287314]
[1769761551950,8.175441,2748.6,2747.2,8.42287314]
[1769761552124,9.07840865,2748.5,2747.2,8.42287314]
[1769761553010,9.07840865,2748.3,2747.0,0.91858731]
[1769761553248,9.07840865,2748.6,2747.1,8.42287314]
[1769761553416,9.07840865,2748.4,2747.1,8.42287314]
[1769761553617,5.308036,2748.5,2747.1,8.42287314]
[1769761553842,5.000392,2748.4,2747.3,8.42287314]
[1769761555765,1.52960241,2748.5,2747.3,8.42287314]
[1769761556655,2.43919587,2748.5,2747.3,8.42287314]
[1769761556819,11.51760452,2748.5,2747.3,8.42287314]
[1769761560853,9.07840865,2748.4,2747.3,8.42287314]
[1769761561025,10.2301691,2748.4,2747.4,0.93570192]
[1769761565162,9.9879162,2748.8,2747.4,9.35857506]
[1769761565338,9.07840865,2748.8,2747.5,8.42287314]
[1769761565541,9.07840865,2748.8,2747.6,0.002]
[1769761566350,9.98790022,2748.8,2747.6,0.002]
[1769761566550,9.14189597,2748.6,2747.6,0.002]
[1769761566737,9.14189597,2748.6,2747.7,0.84248731]
[1769761566937,9.14289597,2748.9,2747.8,9.05018684]
[1769761571232,10.05235478,2748.9,2747.7,0.84248731]
[1769761571434,9.14189597,2748.5,2747.6,0.002]
[1769761572366,10.05151473,2748.5,2747.6,0.002]
[1769761572567,9.14189597,2748.3,2747.6,0.002]
[1769761572762,9.14189597,2748.1,2747.6,0.002]
[1769761574466,0.9141896,2748.2,2747.4,9.05218684]
[1769761574679,9.14189597,2748.3,2747.4,0.002]
[1769761576183,9.14189597,2748.1,2746.8,9.81318684]
[1769761576741,10.05163687,2748.1,2746.8,9.81318684]
[1769761577779,10.05163687,2748.1,2747.7,0.002]
[1769761577937,10.05163687,2748.1,2746.8,9.81318684]
[1769761578265,10.51093514,2748.0,2747.5,0.002]
[1769761579771,11.42069063,2748.0,2747.5,0.002]
[1769761579971,10.51093514,2748.0,2747.5,0.002]
[1769761584847,1.36903917,2748.0,2747.5,0.002]
[1769761589376,11.4206917,2748.0,2747.5,0.002]
[1769761589566,10.64785631,2747.9,2746.9,1.09]
[1769761589879,9.90489597,2747.8,2746.8,9.05018684]
[1769761590079,0.90985187,2747.7,2746.8,9.05018684]
[1769761590381,10.05174784,2747.7,2746.8,9.05018684]
[1769761590751,10.05174784,2747.7,2746.4,0.765]
[1769761590752,9.14189597,2747.3,2746.4,0.002]
[1769761590953,1.7317337,2747.2,2746.4,0.002]
[1769761592374,10.87362967,2747.2,2746.4,0.002]
[1769761593658,9.14189597,2747.1,2746.4,0.002]
[1769761593854,9.14189597,2746.9,2745.9,9.05218684]
[1769761594055,9.90489597,2746.9,2745.9,9.05218684]
[1769761594275,9.14189597,2746.7,2745.9,9.05218684]
[1769761594495,10.05207998,2746.7,2745.9,0.002]
[1769761594787,9.14189597,2746.5,2745.6,0.002]
[1769761594982,13.03484614,2746.4,2745.6,0.002]
[1769761595189,2.70792779,2746.3,2745.6,0.002]
[1769761595503,11.84982376,2746.3,2745.4,0.002]
[1769761595679,2.70672779,2746.2,2745.5,9.04818684]
[1769761596086,2.70672779,2746.2,2745.4,0.002]
[1769761596292,0.27067278,2746.1,2745.3,6.46027375]
[1769761596497,2.43605501,2746.1,2745.3,6.46027375]
[1769761596660,2.16538223,2746.0,2745.3,6.46027375]
[1769761597061,2.16538223,2746.0,2745.3,4.29489152]
[1769761597468,2.16538223,2746.0,2745.3,2.56258574]
[1769761597664,2.16538223,2746.0,2745.3,2.81924431]
[1769761599890,1.18502238,2746.4,2745.5,8.92169]
[1769761600058,3.999363,2746.4,2745.5,8.92169]
[1769761600506,3.026243,2746.4,2745.5,8.92169]
[1769761600695,9.53261772,2746.5,2745.5,8.92169]
[1769761601797,5.554733,2746.4,2745.5,8.92169]
[1769761601963,1.50873507,2746.3,2745.5,8.92169]
[1769761602696,0.001,2746.1,2745.5,8.92169]
[1769761603702,0.001,2746.1,2745.3,9.17834857]
[1769761612411,9.68179528,2746.1,2745.3,0.25665857]
[1769761612712,9.68179654,2746.1,2745.2,0.002]
[1769761614076,8.77140318,2746.1,2745.2,0.002]
[1769761614275,8.77140318,2746.1,2745.5,0.002]
[1769761614480,0.001,2746.1,2745.5,0.002]
[1769761615315,0.87814032,2746.1,2745.5,0.002]
[1769761616289,9.6485435,2746.1,2745.5,0.002]
[1769761621587,10.55894633,2746.1,2745.2,0.002]
[1769761623932,10.55894633,2746.1,2745.0,0.002]
[1769761624131,8.77040318,2745.9,2744.8,0.002]
[1769761624439,8.77040318,2745.7,2744.8,0.002]
[1769761626335,9.0951509,2745.5,2745.4,0.002]
[1769761626630,9.0951509,2745.5,2745.1,0.002]
[1769761629105,10.00573348,2745.5,2745.1,0.002]
[1769761629315,9.0951509,2745.3,2745.1,0.002]
[1769761630839,1.00057335,2745.4,2745.1,0.002]
[1769761631029,0.764,2745.6,2745.1,0.002]
[1769761632444,9.8591509,2745.6,2745.1,0.002]
[1769761634144,9.0951509,2745.8,2745.1,0.002]
[1769761634323,0.001,2746.1,2745.1,9.37978197]
[1769761634523,0.765,2746.1,2745.3,9.37778197]
[1769761634728,9.8601509,2746.1,2745.3,9.37778197]
[1769761636420,0.001,2746.1,2745.3,9.37778197]
[1769761639050,0.001,2745.9,2745.3,9.37778197]
[1769761639430,9.83506655,2746.4,2745.3,9.37778197]
[1769761639633,0.73991565,2746.4,2745.5,9.37778197]
[1769761641231,9.83506655,2746.4,2745.5,9.37778197]
[1769761644254,9.83506655,2746.4,2745.4,1.03157602]
[1769761645049,9.83506655,2746.4,2745.4,10.40935799]
[1769761645252,9.83506655,2746.4,2745.5,10.41871777]
[1769761645754,0.73991565,2746.4,2745.5,10.41871777]
[1769761647856,0.73991565,2746.4,2745.5,1.0409358]
[1769761647857,9.0951509,2746.3,2745.5,1.0409358]
[1769761648071,9.0951509,2746.3,2745.2,10.31576017]
[1769761649135,9.0951509,2746.3,2745.2,0.9379782]
[1769761649342,9.0951509,2746.3,2745.1,0.766]
[1769761650047,10.00547012,2746.3,2745.1,0.766]
[1769761650249,9.0951509,2746.3,2745.1,0.766]
[1769761650450,9.0951509,2746.3,2745.1,10.14378197]
[1769761650650,10.00546759,2746.3,2745.1,10.14378197]
[1769761650847,9.0951509,2746.1,2745.2,0.73506924]
[1769761651763,9.0951509,2746.1,2745.4,0.002]
[1769761652552,9.0951509,2746.1,2745.1,0.002]
[1769761652553,10.76954111,2746.1,2745.1,0.002]
[1769761652750,9.0951509,2745.9,2745.1,0.002]
[1769761653968,9.0951509,2745.7,2744.6,0.002]
[1769761654261,10.00573745,2745.5,2744.6,0.002]
[1769761654463,9.0951509,2745.5,2744.6,0.002]
[1769761654667,9.0951509,2745.3,2744.6,0.002]
[1769761656436,10.01785084,2745.1,2744.5,0.002]
[1769761656838,10.01785084,2745.0,2744.3,0.002]
[1769761657063,10.78185084,2745.0,2744.3,0.002]
[1769761657364,4.71951578,2745.4,2744.3,0.002]
[1769761657365,0.764,2745.1,2744.3,10.03987057]
[1769761657536,0.764,2745.1,2744.4,1.00418706]
[1769761657959,10.01785084,2745.2,2744.4,1.00418706]
[1769761661471,10.01785084,2745.2,2744.3,10.03987057]
[1769761663870,0.001,2745.1,2744.3,10.03987057]
[1769761664070,10.01785084,2745.6,2744.4,10.03787057]
[1769761664276,4.41253742,2746.0,2744.4,10.03787057]
[1769761664277,10.68628503,2746.0,2744.5,10.03787057]
[1769761664475,0.66843419,2746.0,2744.5,11.12787057]
[1769761664663,0.66843419,2746.0,2744.6,11.15065763]
[1769761665080,10.44755479,2747.0,2745.5,10.03787057]
[1769761666346,11.3576396,2747.0,2745.5,10.03787057]
[1769761666547,10.01785084,2746.8,2745.5,10.03787057]
[1769761667796,10.92800638,2746.8,2745.2,10.03787057]
[1769761668001,10.92800638,2746.8,2745.2,1.00378706]
[1769761668002,10.01785084,2746.4,2745.2,1.00378706]
[1769761668184,10.01785084,2746.4,2745.1,0.764]
[1769761670406,10.01785084,2746.2,2745.1,0.764]
[1769761672100,10.01785084,2746.2,2745.1,10.80187057]
[1769761674717,10.92820126,2746.2,2744.9,10.03787057]
[1769761674898,10.92820126,2746.2,2744.9,0.764]
[1769761675211,10.01785084,2746.0,2744.9,0.764]
[1769761675383,10.01785084,2746.0,2745.3,0.002]
[1769761683995,10.01785084,2746.3,2745.3,0.002]
[1769761684221,0.764,2746.2,2745.3,10.03987057]
[1769761684420,10.78185084,2746.2,2745.3,10.03987057]
[1769761684719,11.95106703,2746.2,2745.3,10.03987057]
[1769761685323,11.18706703,2746.2,2745.3,10.03987057]
[1769761687924,11.18706703,2746.2,2745.3,0.002]
[1769761697037,11.18706703,2746.2,2745.3,9.80679782]
[1769761699331,11.18706703,2746.2,2745.5,0.002]
[1769761699532,1.1951067,2746.1,2745.5,0.002]
[1769761699923,9.27721974,2746.0,2745.5,0.002]
[1769761709964,9.27721974,2746.0,2745.0,0.002]
[1769761709965,10.9516478,2746.0,2745.0,0.002]
[1769761710111,9.27721974,2745.6,2745.0,0.002]
[1769761710448,9.27721974,2745.4,2745.0,0.002]
[1769761711314,1.74526607,2745.5,2744.3,0.002]
[1769761711315,9.27721974,2745.2,2744.3,0.002]
[1769761711914,9.27721974,2745.2,2744.3,9.80679782]
[1769761712260,9.27721974,2745.2,2744.4,9.80679782]
[1769761713346,9.27721974,2745.2,2744.4,0.002]
[1769761714664,4.12454925,2746.2,2744.4,9.80679782]
[1769761714665,0.764,2745.4,2744.4,9.80679782]
[1769761714960,10.04121974,2745.4,2744.5,10.7856776]
[1769761716669,10.04121974,2745.4,2744.5,0.98087978]
[1769761718425,10.22921917,2745.6,2744.5,10.6634967]
[1769761719744,10.22921917,2745.6,2744.5,11.7534967]
[1769761719949,10.22921917,2745.6,2744.6,10.85816659]
[1769761723560,10.22921917,2745.6,2744.6,1.17554967]
[1769761724062,10.22921917,2745.6,2744.7,0.002]
[1769761724557,0.001,2745.4,2744.7,0.002]
[1769761725742,0.001,2745.4,2744.7,9.68461692]
[1769761725942,0.001,2745.4,2744.7,10.76227861]
[1769761727839,10.23021917,2745.4,2744.7,1.07966169]
[1769761728031,10.23021917,2745.4,2744.7,0.002]
[1769761728435,0.001,2745.4,2744.7,9.68461692]
[1769761730835,10.23021917,2745.4,2744.7,9.68461692]
[1769761731465,10.23021917,2745.4,2744.7,0.002]
[1769761736649,11.14083438,2745.4,2744.7,0.002]
[1769761736852,10.22921917,2745.2,2744.9,0.002]
[1769761737053,10.22921917,2745.2,2744.7,0.002]
[1769761737351,10.23021917,2745.2,2744.7,0.002]
[1769761739488,10.23021917,2745.2,2744.3,0.002]
[1769761739691,11.14091768,2745.2,2744.3,0.002]
[1769761739894,10.22921917,2745.0,2744.3,0.002]
[1769761741365,10.22921917,2744.8,2744.3,0.002]
[1769761741696,10.22921917,2744.8,2744.2,0.27718125]
[1769761741903,8.175441,2744.7,2744.2,0.27718125]
[1769761742192,10.22921917,2744.6,2744.2,0.27718125]
[1769761742380,10.22921917,2744.4,2744.2,0.27718125]
[1769761744392,0.91083749,2744.8,2744.2,0.27718125]
[1769761744592,0.764,2744.7,2744.2,0.27718125]
[1769761745722,10.22921917,2745.0,2744.2,0.27718125]
[1769761745868,10.99321917,2745.0,2744.2,0.27718125]
[1769761746199,1.32058346,2744.9,2744.2,0.27718125]
[1769761747884,9.30553971,2744.9,2744.2,0.27718125]
[1769761749298,0.001,2744.8,2744.2,9.70199533]
[1769761750412,9.30653971,2744.8,2744.2,0.27718125]
[1769761753982,0.001,2744.8,2744.2,9.70199533]
[1769761755075,9.30653971,2744.8,2744.2,0.27718125]
[1769761756289,9.30653971,2744.8,2744.2,1.24778078]
[1769761756901,0.001,2744.8,2744.2,1.24778078]
[1769761757107,0.001,2744.8,2744.2,9.70199533]
[1769761761301,0.001,2744.8,2744.3,9.42481408]
[1769761763822,0.001,2744.8,2744.2,24.20199533]
[1769761764500,9.30653971,2744.8,2744.2,0.27718125]
[1769761765223,9.30553971,2744.6,2744.0,0.002]
[1769761765431,9.30553971,2744.4,2744.0,0.002]
[1769761767741,9.30553971,2744.4,2743.8,0.002]
[1769761772066,9.30553971,2744.4,2742.9,1.09]
[1769761772067,9.30553971,2744.2,2742.7,1.09]
[1769761772270,9.30553971,2744.0,2742.8,1.09]
[1769761772441,9.30553971,2743.8,2742.8,1.09]
[1769761772643,9.30553971,2743.8,2742.8,10.51481408]
[1769761772962,9.30553971,2743.8,2742.9,9.42481408]
[1769761773558,9.30553971,2743.8,2742.8,1.09]
[1769761774156,9.30553971,2743.8,2742.7,10.19081408]
[1769761774469,9.30553971,2743.8,2742.7,0.766]
[1769761774470,9.30553971,2743.6,2742.7,0.766]
[1769761777061,9.30553971,2743.6,2742.7,10.62451057]
[1769761777575,9.30553971,2743.6,2742.7,0.766]
[1769761777745,10.96871394,2743.5,2742.7,0.766]
[1769761780480,10.96871394,2743.5,2742.7,0.002]
[1769761784854,10.96871394,2743.5,2742.9,0.002]
[1769761785170,9.96175997,2743.3,2742.9,0.002]
[1769761785470,9.96175997,2743.3,2742.7,0.002]
[1769761785648,9.96175997,2743.1,2742.7,0.002]
[1769761785854,9.96175997,2743.1,2742.2,0.764]
[1769761786460,9.96175997,2743.1,2741.6,9.86051057]
[1769761786461,9.96175997,2742.9,2741.6,9.86051057]
[1769761787283,9.96175997,2742.9,2741.6,0.002]
[1769761788401,9.96175997,2742.7,2741.6,0.002]
[1769761788555,9.96175997,2742.5,2741.6,0.002]
[1769761789370,0.764,2742.4,2741.6,0.002]
[1769761789582,9.96175997,2742.5,2741.6,9.86051057]
[1769761789786,10.72575997,2742.5,2741.6,9.86051057]
[1769761790268,10.72575997,2742.5,2741.6,0.002]
[1769761790564,11.14306834,2742.4,2741.6,0.002]
[1769761794550,12.05468535,2742.4,2741.6,0.002]
[1769761794804,11.14306834,2742.4,2741.6,9.86051057]
[1769761796887,11.14306834,2742.4,2741.8,0.002]
[1769761797388,1.18130837,2742.4,2741.8,0.002]
[1769761797890,0.19463084,2742.3,2741.8,0.002]
[1769761798991,10.15639081,2742.3,2741.8,0.002]
[1769761799284,11.06803551,2742.3,2741.8,0.002]
[1769761800491,8.175441,2742.0,2740.5,9.86051057]
[1769761800689,9.96175997,2741.7,2740.5,9.86051057]
[1769761800995,11.63860804,2741.7,2740.5,9.86051057]
[1769761801289,10.72675997,2741.7,2740.5,9.86051057]
[1769761801996,9.96175997,2741.7,2740.5,9.86051057]
[1769761802292,0.91177117,2742.0,2740.5,9.86051057]
[1769761802293,9.96175997,2742.0,2740.5,9.86051057]
[1769761802464,9.96175997,2742.2,2740.6,10.84456163]
[1769761803596,10.87346277,2742.2,2740.6,10.84456163]
[1769761804363,9.96175997,2742.2,2740.6,10.84456163]
[1769761805360,9.96175997,2742.2,2740.8,9.85851057]
[1769761806186,9.96175997,2742.2,2741.0,9.05610282]
[1769761806384,9.96175997,2742.2,2741.2,9.05610282]
[1769761812850,9.96175997,2742.2,2741.0,9.82310282]
[1769761813140,9.96175997,2742.2,2740.8,0.002]
[1769761813141,9.73142479,2741.8,2740.8,0.002]
[1769761813287,9.73142479,2741.6,2740.8,0.002]
[1769761813488,9.73142479,2741.4,2740.8,0.002]
[1769761815036,10.64336993,2741.4,2740.8,0.002]
[1769761815741,10.64336993,2741.4,2739.6,9.05610282]
[1769761815742,9.73142479,2741.2,2739.6,9.05610282]
[1769761815886,9.73142479,2740.8,2739.6,9.05610282]
[1769761816090,0.765,2741.1,2739.6,9.05610282]
[1769761816091,9.73142479,2740.6,2739.7,0.90781028]
[1769761816721,9.73142479,2740.6,2739.7,0.002]
[1769761816722,10.49642479,2740.6,2739.7,0.002]
[1769761816910,9.73142479,2740.4,2739.7,0.002]
[1769761817732,0.91223221,2740.6,2739.7,0.002]
[1769761818025,10.49642479,2740.5,2739.7,0.002]
[1769761818238,10.78106727,2740.4,2739.7,0.002]
[1769761818592,10.78106727,2740.4,2738.9,0.765]
[1769761819001,9.73142479,2740.2,2738.9,0.765]
[1769761819696,9.73142479,2739.8,2738.0,9.05610282]
[1769761819928,1.32351382,2740.3,2737.9,14.5]
[1769761819929,9.73142479,2739.6,2738.2,9.05610282]
[1769761820126,11.54606727,2739.6,2738.3,10.0382131]
[1769761821099,11.54606727,2739.6,2737.9,9.05610282]
[1769761821100,10.34114732,2739.5,2737.9,9.05610282]
[1769761821425,0.765,2739.4,2737.9,9.05610282]
[1769761821627,10.49642479,2739.4,2738.1,9.05610282]
[1769761822004,1.37472253,2739.5,2738.1,9.05610282]
[1769761822197,0.60972253,2739.5,2738.3,9.05610282]
[1769761822426,10.34114732,2739.5,2738.6,0.002]
[1769761823501,11.10614732,2739.5,2738.6,0.002]
[1769761823921,12.01873053,2739.5,2738.6,0.002]
[1769761824118,11.10614732,2739.5,2738.6,0.002]
[1769761824323,9.73142479,2739.3,2738.6,0.002]
[1769761825016,9.73142479,2739.1,2738.6,0.002]
[1769761826408,0.765,2739.0,2738.6,0.002]
[1769761826799,10.49642479,2739.0,2738.6,0.002]
[1769761827894,10.49642479,2739.0,2737.4,9.82110282]
[1769761828135,9.73142479,2738.8,2737.4,9.82110282]
[1769761828302,10.30758192,2738.7,2737.4,9.82110282]
[1769761828502,10.30758192,2738.7,2737.4,14.5]
[1769761828719,10.77028687,2738.7,2737.4,14.5]
[1769761828933,9.73142479,2738.5,2737.5,1.45]
[1769761829318,10.49642479,2738.5,2737.2,9.05610282]
[1769761829844,10.49642479,2738.5,2737.3,9.05610282]
[1769761829997,0.57615713,2738.7,2737.3,9.05610282]
[1769761830505,0.57615713,2738.7,2737.5,9.05610282]
[1769761832740,9.73142479,2739.3,2737.6,9.05610282]
[1769761832944,14.0784372,2741.9,2737.6,9.05610282]
[1769761832945,9.73142479,2740.0,2738.0,9.05610282]
[1769761833231,0.46270495,2740.1,2738.2,9.05610282]
[1769761833232,9.73142479,2739.8,2738.2,9.05610282]
[1769761834237,10.49742479,2740.1,2738.2,9.05610282]
[1769761834435,9.73142479,2739.9,2738.2,9.05610282]
[1769761834609,9.73142479,2739.7,2738.4,9.05610282]
[1769761834811,9.73142479,2739.7,2738.5,9.05610282]
[1769761835017,1.79068658,2739.8,2738.5,9.05610282]
[1769761835304,9.73142479,2740.0,2738.5,9.05610282]
[1769761835509,10.2786391,2740.2,2738.6,0.2335703]
[1769761835729,0.54721431,2740.2,2738.8,9.05610282]
[1769761836627,0.54721431,2740.2,2738.7,0.92896731]
[1769761836628,0.54721431,2740.2,2739.0,9.40495046]
[1769761836829,0.54721431,2740.2,2739.0,10.17095046]
[1769761837415,10.11066214,2740.2,2739.0,0.766]
[1769761837735,9.56344783,2740.0,2738.7,0.92896731]
[1769761837906,9.56344783,2739.8,2738.7,0.92896731]
[1769761839744,0.54721431,2740.2,2738.7,10.33391777]
[1769761841214,9.56344783,2740.0,2738.7,0.92896731]
[1769761841436,9.56344783,2740.0,2738.4,9.40495046]
[1769761841437,9.56344783,2739.9,2738.4,9.40495046]
[1769761841737,9.56344783,2739.9,2738.4,23.90495046]
[1769761842040,10.47589228,2739.9,2738.3,0.98221028]
[1769761842243,10.47589228,2739.9,2737.7,0.002]
[1769761842244,0.1024,2739.3,2737.7,0.002]
[1769761842550,9.56344783,2738.8,2737.7,0.002]
[1769761843539,10.47628361,2738.8,2737.7,0.002]
[1769761843847,9.56344783,2738.8,2737.7,0.002]
[1769761844053,9.56344783,2738.6,2737.7,0.002]
[1769761845345,0.03,2738.0,2737.7,0.002]
[1769761846722,0.03,2738.0,2737.9,0.002]
[1769761848230,0.03,2738.0,2737.6,0.002]
[1769761850021,9.59344783,2738.0,2737.6,0.002]
[1769761850315,10.55279261,2738.0,2737.6,0.002]
[1769761850745,0.03,2738.0,2737.6,0.002]
[1769761853571,9.59344783,2738.0,2737.6,0.002]
[1769761854270,9.59344783,2738.0,2736.9,0.766]
[1769761858281,9.56344783,2737.8,2736.6,0.002]
[1769761858569,9.56344783,2737.6,2736.6,0.002]
[1769761858778,9.56344783,2737.4,2736.4,0.002]
[1769761859070,9.56344783,2737.2,2736.4,0.002]
[1769761859270,10.32944783,2737.2,2737.1,0.002]
[1769761859571,9.56344783,2737.1,2735.4,0.30613454]
[1769761859970,9.56344783,2736.9,2735.4,0.30613454]
[1769761860280,9.56344783,2736.9,2735.8,0.002]
[1769761860483,9.56344783,2737.2,2735.9,10.34564551]
[1769761861276,9.56344783,2737.2,2735.9,0.94069505]
[1769761861484,9.56344783,2737.2,2735.8,0.002]
[1769761861865,9.56344783,2737.2,2735.8,9.40695046]
[1769761864560,9.56344783,2737.2,2735.8,0.002]
[1769761864956,9.56344783,2737.2,2735.8,9.40695046]
[1769761865755,0.766,2737.5,2735.8,9.40695046]
[1769761865756,9.56344783,2737.5,2735.8,9.40695046]
[1769761865971,9.56444783,2737.8,2736.0,9.40495046]
[1769761867177,9.56444783,2737.8,2735.9,0.94069505]
[1769761867178,9.79902831,2737.4,2735.9,0.94069505]
[1769761867567,17.97446931,2737.2,2735.8,0.002]
[1769761867888,9.79902831,2737.1,2735.8,0.002]
[1769761870015,9.79902831,2736.9,2735.8,0.002]
[1769761870360,9.79902831,2737.4,2735.8,9.05109146]
[1769761870561,9.79902831,2737.2,2735.9,0.90510915]
[1769761871701,9.79902831,2737.2,2736.0,0.002]
[1769761873579,10.71238005,2737.2,2736.0,0.002]
[1769761875383,10.71238005,2737.2,2735.8,0.002]
[1769761875384,9.79902831,2737.0,2735.8,0.002]
[1769761875679,9.79902831,2736.8,2735.8,0.002]
[1769761877769,1.03641333,2736.9,2735.8,9.05109146]
[1769761877969,9.79902831,2737.1,2735.8,9.05109146]
[1769761878170,10.77893114,2737.3,2735.8,9.05109146]
[1769761878677,10.77893114,2737.3,2735.8,0.002]
[1769761878877,11.69224498,2737.3,2735.8,0.002]
[1769761880386,10.77893114,2737.3,2735.8,0.002]
[1769761880591,9.79902831,2737.1,2735.8,0.90710915]
[1769761881607,1.16922267,2737.2,2735.9,9.04909146]
[1769761881807,10.96825098,2737.2,2735.9,9.04909146]
[1769761883808,9.79902831,2737.1,2735.9,9.04909146]
[1769761884113,9.79902831,2737.1,2736.0,0.99762006]
[1769761884687,1.16922267,2737.2,2736.0,10.04671152]
[1769761884889,9.80002831,2737.6,2736.0,10.04671152]
[1769761885090,10.26273326,2737.6,2736.0,10.04671152]
[1769761885293,0.46270495,2737.5,2736.0,10.04671152]
[1769761885487,9.79902831,2737.4,2736.0,0.99762006]
[1769761885684,9.79902831,2737.4,2736.0,0.002]
[1769761886017,10.71231238,2737.4,2736.0,0.002]
[1769761886219,9.79902831,2737.2,2736.0,0.002]
[1769761888092,10.71239083,2737.2,2736.0,0.002]
[1769761888286,0.766,2737.1,2735.8,0.002]
[1769761888596,9.79902831,2737.0,2735.8,0.002]
[1769761888796,9.79902831,2736.8,2735.8,0.002]
[1769761889001,9.79902831,2736.8,2735.8,9.05109146]
[1769761889521,9.79902831,2737.1,2735.8,9.05109146]
[1769761889738,0.766,2737.2,2735.8,9.05109146]
[1769761889904,9.90142831,2737.4,2735.8,9.05109146]
[1769761890110,10.78917114,2737.3,2735.9,0.90510915]
[1769761891040,10.78917114,2737.3,2735.1,0.766]
[1769761891041,9.79902831,2737.1,2734.7,0.002]
[1769761891226,1.3924,2737.2,2734.7,0.002]
[1769761891227,9.79902831,2735.7,2734.7,0.002]
[1769761891446,9.79902831,2735.1,2733.2,8.47590375]
[1769761892221,9.79902831,2734.9,2733.2,8.47590375]
[1769761892421,0.91407678,2735.0,2732.9,0.0190972]
[1769761892422,9.79902831,2734.5,2732.9,0.0190972]
[1769761892591,9.79902831,2734.5,2732.9,9.06818866]
[1769761892787,10.85553114,2734.5,2733.0,9.95591033]
[1769761893188,10.85553114,2734.5,2733.0,0.90681887]
[1769761893499,9.79902831,2734.3,2732.9,0.0190972]
[1769761897200,9.79902831,2734.3,2733.1,0.002]
[1769761900329,10.71334178,2734.3,2733.1,0.002]
[1769761900929,9.45279325,2734.1,2733.1,0.002]
[1769761901295,9.95700344,2734.1,2733.1,0.002]
[1769761901498,10.44849359,2734.1,2733.1,0.002]
[1769761901694,9.45279325,2734.4,2733.1,0.002]
[1769761902113,1.05650283,2734.5,2733.1,9.18533996]
[1769761902704,10.50929608,2734.5,2733.1,9.18533996]
[1769761903105,11.42354731,2734.5,2733.1,0.002]
[1769761903305,9.45279325,2734.4,2733.1,0.002]
[1769761903537,9.45279325,2734.2,2733.1,0.002]
[1769761908133,9.45279325,2734.0,2733.1,0.002]
[1769761910643,10.87144153,2734.0,2733.1,0.002]
[1769761912015,9.95700344,2734.0,2733.1,0.002]
[1769761912237,9.45279325,2734.0,2733.1,0.002]
[1769761912417,9.45279325,2733.8,2733.1,0.002]
[1769761914007,10.48961223,2733.9,2733.1,0.002]
[1769761914339,9.45279325,2733.9,2733.1,0.002]
[1769761917323,9.45279325,2733.7,2733.1,0.002]
[1769761918454,0.767,2733.9,2733.1,0.002]
[1769761918455,9.45279325,2733.8,2733.1,0.002]
[1769761918657,10.56621723,2733.7,2733.1,0.002]
[1769761919368,10.56621723,2733.7,2731.8,0.2355703]
[1769761919369,9.45279325,2733.3,2731.8,0.002]
[1769761919526,9.45279325,2733.1,2731.8,9.18533996]
[1769761919830,0.767,2733.2,2731.8,9.18533996]
[1769761920023,0.767,2733.2,2732.0,9.18333996]
[1769761920226,1.11342398,2733.7,2732.0,9.18333996]
[1769761920428,10.21979325,2733.7,2732.0,9.18333996]
[1769761920663,0.001,2733.8,2732.0,9.18333996]
[1769761922323,9.45379325,2733.8,2732.0,9.18333996]
[1769761922730,9.45279325,2733.6,2731.9,0.918534]
[1769761922938,9.45279325,2733.4,2731.8,0.002]
[1769761923950,9.45279325,2733.7,2731.9,9.18333996]
[1769761925238,9.45279325,2733.7,2732.1,9.18333996]
[1769761925559,10.39817257,2733.6,2732.2,2.368334]
[1769761925757,10.39817257,2733.6,2732.1,9.18333996]
[1769761926163,10.39817257,2733.6,2732.2,14.5]
[1769761926656,11.31272041,2733.6,2732.0,0.767]
[1769761926830,11.31272041,2733.6,2731.8,9.42414301]
[1769761927030,9.12285465,2733.4,2731.9,16.2094143]
[1769761927763,9.12285465,2733.2,2731.9,15.4424143]
[1769761928272,10.67035312,2733.5,2732.0,9.42214301]
[1769761929151,10.67035312,2733.5,2732.1,14.5]
[1769761930959,10.67035312,2733.5,2732.2,9.42214301]
[1769761931263,1.06703531,2733.4,2732.3,2.3922143]
[1769761931472,1.06703531,2733.4,2732.3,2.3942143]
[1769761931763,1.06803531,2733.4,2732.3,2.3942143]
[1769761932336,1.06803531,2733.4,2732.3,0.002]
[1769761932538,9.12285465,2733.3,2732.3,0.002]
[1769761934165,9.12285465,2733.1,2732.3,0.002]
[1769761936470,9.12285465,2732.9,2732.0,0.002]
[1769761938084,10.03763729,2732.9,2731.0,9.42414301]
[1769761938386,1.3696754,2732.8,2731.1,10.36455731]
[1769761938608,9.12285465,2733.0,2731.1,10.36455731]
[1769761941278,9.12285465,2733.0,2731.2,14.5]
[1769761941464,9.12285465,2733.0,2731.3,9.42214301]
[1769761942268,9.12285465,2733.0,2731.5,9.42214301]
[1769761943180,9.12285465,2733.0,2731.6,14.5]
[1769761943382,9.12285465,2732.8,2731.7,2.3922143]
[1769761943956,9.12285465,2732.8,2731.5,9.42214301]
[1769761944176,9.12285465,2732.8,2731.6,14.5]
[1769761946279,9.12285465,2732.8,2731.3,0.002]
[1769761946280,9.12285465,2732.4,2731.3,0.002]
[1769761946786,9.12285465,2732.7,2731.3,9.42414301]
[1769761946992,1.00376848,2732.6,2731.4,11.81455731]
[1769761947497,9.12285465,2732.7,2731.4,12.58155731]
[1769761947668,9.12285465,2732.7,2731.5,9.42214301]
[1769761948068,9.12285465,2732.7,2731.3,0.002]
[1769761948069,9.12285465,2732.3,2731.3,0.002]
[1769761948799,9.12285465,2732.7,2731.3,9.42414301]
[1769761949185,9.12285465,2732.7,2731.3,10.19114301]
[1769761949367,10.12636866,2732.7,2731.4,1.0191143]
[1769761949809,10.12636866,2732.7,2731.3,0.769]
[1769761951279,9.12285465,2732.5,2731.3,0.002]
[1769761955609,9.12285465,2732.5,2731.3,9.42414301]
[1769761956942,1.00351401,2732.7,2731.3,9.42414301]
[1769761957225,9.16093367,2732.8,2731.3,9.42414301]
[1769761959297,9.16093367,2732.8,2731.5,9.03517048]
[1769761959948,9.16093367,2732.8,2731.3,0.002]
[1769761960151,9.16093367,2732.8,2731.3,9.03717048]
[1769761960744,0.001,2732.8,2731.3,9.03717048]
[1769761960959,0.001,2732.8,2731.5,9.03517048]